Workbook

Sheet الاساسى (2) (hidden)
A3: رقم الصنف | B3: الصنف | C3: المجموعه | D3: الوحده | E3: سعر الوحده | F3: رقم المورد | G3: اسم المورد | H3: رقم امر التوريد
A4: 320204611 | B4: فرنش 8/236 | C4: سلطةدريسنج | D4: BOT
A5: 320204612 | B5: بلوتشيز236 | C5: سلطةدريسنج | D5: BOT
A6: 320204619 | B6: ديمى جلس | C6: سلطةدريسنج | D6: CRT
A7: 320204621 | B7: باربكيو | C7: سلطةدريسنج | D7: JRK
A8: 320204636 | B8: ديمىجلس750 | C8: سلطةدريسنج | D8: TIN
A9: 320204637 | B9: درسينج بدو | C9: سلطةدريسنج | D9: THN
A10: 320204601 | B10: باكو10ج | C10: سلطةدريسنج | D10: THN
A11: 120740109 | B11: كركدية2جم | C11: عبوات | D11: TIN
A12: 120740111 | B12: كاموميل5ز1 | C12: عبوات | D12: PKT
A13: 120740112 | B13: بابونج 1,5 | C13: عبوات | D13: PKT
A14: 120740113 | B14: كاموميل2جم | C14: عبوات | D14: PKT
A15: 120740115 | B15: ينسون2:1.5 | C15: عبوات | D15: TIN
A16: 120740117 | B16: كركديه | C16: عبوات | D16: KGM
A17: 520603101 | B17: ريشة شيش ك | C17: ريشة شيش كباب | D17: THN
A18: 520503101 | B18: ميلمين مست | C18: غطاءطبق بلستيك | D18: EA.
A19: 520503103 | B19: صينى مستطي | C19: غطاءطبق بلستيك | D19: EA.
A20: 520503104 | B20: صينى مربع | C20: غطاءطبق بلستيك | D20: EA.
A21: 520503105 | B21: باول ص 0مد | C21: غطاءطبق بلستيك | D21: EA.
A22: 520503106 | B22: غ/اكسبريس | C22: غطاءطبق بلستيك | D22: EA.
A23: 520503111 | B23: غطاء للعيش | C23: غطاءطبق بلستيك | D23: EA.
A24: 520503113 | B24: غ/طبق جديد | C24: غطاءطبق بلستيك | D24: EA.
A25: 520503102 | B25: مربع فاكي | C25: غطاءطبق بلستيك | D25: THN
A26: 420913009 | B26: الدعايةوالعلم | C26: E4 ظرف | D26: EA.
A27: 420404408 | B27: كرتون | C27: 6*25*25 | D27: EA.
A28: 520508108 | B28: اطقم بلستيك | C28: 1 X5كوفير | D28: EA.
A29: 520508119 | B29: اطقم بلستيك | C29: 1 X9كوفير | D29: EA.
A30: 520506120 | B30: أكواب | C30: 7,5X7,5/غ | D30: EA.
A31: 121712125 | B31: محسنات خبزوكيك | C31: Eسوبرجاما | D31: KGM
A32: 520301119 | B32: ف0ص0اولى بشعار | C32: Fس أساسى | D32: EA.
A33: 420911001 | B33: المشتريات | C33: GRأزن فحص | D33: EA.
A34: 410301118 | B34: ادوات تواليت | C34: KILLER250 | D34: EA.
A35: 120737103 | B35: نعناع2:1.5 | C35: النعناع | D35: BOX
A36: 520509104 | B36: علب/سند/كب | C36: علب بلستيك وسناكس | D36: EA.
A37: 520509106 | B37: طبق فوم | C37: علب بلستيك وسناكس | D37: THN
A38: 520509108 | B38: علبةشفافة | C38: علب بلستيك وسناكس | D38: EA.
A39: 520509109 | B39: بلستك بغطا | C39: علب بلستيك وسناكس | D39: EA.
A40: 520509110 | B40: غ/علبةوجبا | C40: علب بلستيك وسناكس | D40: EA.
A41: 520509112 | B41: لنش بوكس | C41: علب بلستيك وسناكس | D41: EA.
A42: 520509114 | B42: علبةك/ب/ش | C42: علب بلستيك وسناكس | D42: EA.
A43: 520509115 | B43: ع/ص /ش متص | C43: علب بلستيك وسناكس | D43: EA.
A44: 520509117 | B44: لنش بوكس ش | C44: علب بلستيك وسناكس | D44: EA.
A45: 520509118 | B45: سناكس بدون | C45: علب بلستيك وسناكس | D45: EA.
A46: 520509119 | B46: علبه لنش ش | C46: علب بلستيك وسناكس | D46: EA.
A47: 520509120 | B47: ع/لنش/كحلى | C47: علب بلستيك وسناكس | D47: EA.
A48: 520509121 | B48: ع/لنش شروق | C48: علب بلستيك وسناكس | D48: EA.
A49: 520509122 | B49: لنش أبيض ش | C49: علب بلستيك وسناكس | D49: EA.
A50: 520509123 | B50: ع/وجب/أزرق | C50: علب بلستيك وسناكس | D50: EA.
A51: 520509124 | B51: ع/فرنسى22س | C51: علب بلستيك وسناكس | D51: EA.
A52: 520509125 | B52: طبق فوم1ك | C52: علب بلستيك وسناكس | D52: EA.
A53: 520509128 | B53: ع/وجبةبدون | C53: علب بلستيك وسناكس | D53: EA.
A54: 520509129 | B54: ع/سند26بدو | C54: علب بلستيك وسناكس | D54: EA.
A55: 520509105 | B55: علبةكبيرة | C55: علب بلستيك وسناكس | D55: EA.
A56: 420900106 | B56: احباروورق طابعات | C56: 49A1320حبر | D56: EA.
A57: 120504313 | B57: كمبوت اناناس | C57: 836GMS | D57: TIN
A58: 410301117 | B58: ادوات تواليت | C58: AEROSOL400 | D58: EA.
A59: 520301118 | B59: ف0ص0اولى بشعار | C59: F ش أساسى | D59: EA.
A60: 420605105 | B60: ورق لماكينه الصرافه | C60: Kبكر مقاس | D60: EA.
A61: 420900105 | B61: احباروورق طابعات | C61: LAXMARشريط | D61: EA.
A62: 120103203 | B62: كندوز | C62: Nفلتومستور | D62: KGM
A63: 220203217 | B63: مصفاه | C63: S باول40سم | D63: EA.
A64: 220401221 | B64: صوانى وصاجات معدنية | C64: SS صينيه | D64: EA.
A65: 120101111 | B65: بتلو | C65: VEEL فلتو | D65: KGM
A66: 420900201 | B66: أصل + صوره | C66: احباروورق طابعات | D66: CRT
A67: 420900202 | B67: أصل+ 2صوره | C67: احباروورق طابعات | D67: CRT
A68: 410301114 | B68: قرص معطر | C68: ادوات تواليت | D68: EA.
A69: 220107206 | B69: مستحد للسن | C69: ادوات جزارة | D69: EA.
A70: 220107212 | B70: بلنش بلستك | C70: ادوات جزارة | D70: EA.
A71: 220107214 | B71: مستحد صلب | C71: ادوات جزارة | D71: EA.
A72: 220107215 | B72: مقاس 50×40 | C72: ادوات جزارة | D72: EA.
A73: 220107217 | B73: بلنش أحمر | C73: ادوات جزارة | D73: EA.
A74: 220107218 | B74: بلنش أزرق | C74: ادوات جزارة | D74: EA.
A75: 220107219 | B75: بلنش أخضر | C75: ادوات جزارة | D75: EA.
A76: 220107220 | B76: بلنش أصفر | C76: ادوات جزارة | D76: EA.
A77: 220107221 | B77: بلنش بنى | C77: ادوات جزارة | D77: EA.
A78: 220107225 | B78: لوح تقطيع | C78: ادوات جزارة | D78: EA.
A79: 220102203 | B79: كبشةللغرف | C79: ادوات غرف | D79: EA.
A80: 220102204 | B80: سباتول | C80: ادوات غرف | D80: EA.
A81: 220102205 | B81: كبشة كبيرة | C81: ادوات غرف | D81: EA.
A82: 220102206 | B82: مقصوصةكبير | C82: ادوات غرف | D82: EA.
A83: 220102211 | B83: معلقه ايس | C83: ادوات غرف | D83: EA.
A84: 220102213 | B84: كبشةيد طوي | C84: ادوات غرف | D84: EA.
A85: 220102217 | B85: سباتول | C85: ادوات غرف | D85: EA.
A86: 220102218 | B86: اسبامسطرين | C86: ادوات غرف | D86: EA.
A87: 220102224 | B87: ملعقةايس0ك | C87: ادوات غرف | D87: EA.
A88: 220102225 | B88: كبشة للغرف | C88: ادوات غرف | D88: EA.
A89: 220102234 | B89: معيار2 لتر | C89: ادوات غرف | D89: EA.
A90: 220102235 | B90: معيار1 لتر | C90: ادوات غرف | D90: EA.
A91: 220102236 | B91: مقوار تفاح | C91: ادوات غرف | D91: EA.
A92: 220102237 | B92: م/بارزيان | C92: ادوات غرف | D92: EA.
A93: 220102239 | B93: اسباتول رف | C93: ادوات غرف | D93: EA.
A94: 220102241 | B94: اسباتول1مت | C94: ادوات غرف | D94: EA.
A95: 220102242 | B95: اسباتول4بو | C95: ادوات غرف | D95: EA.
A96: 420701101 | B96: مساحه بيد | C96: ادوات نظافه | D96: EA.
A97: 420701105 | B97: زبالةبلستك | C97: ادوات نظافه | D97: EA.
A98: 420701110 | B98: ليف ألوان | C98: ادوات نظافه | D98: EA.
A99: 420701114 | B99: فرشة أظافر | C99: ادوات نظافه | D99: EA.
A100: 420701117 | B100: مقشةبلستيك | C100: ادوات نظافه | D100: EA.
A101: 420701119 | B101: جاروف بيدك | C101: ادوات نظافه | D101: EA.
A102: 420701120 | B102: فوط مسح وب | C102: ادوات نظافه | D102: EA.
A103: 420701121 | B103: فرشةبيد | C103: ادوات نظافه | D103: EA.
A104: 420701126 | B104: زبالةف/قدم | C104: ادوات نظافه | D104: EA.
A105: 420701128 | B105: جردل 15لتر | C105: ادوات نظافه | D105: EA.
A106: 420701129 | B106: بخاخةبلستك | C106: ادوات نظافه | D106: EA.
A107: 420701131 | B107: فرشةتواليت | C107: ادوات نظافه | D107: EA.
A108: 420701132 | B108: هارداسبونج | C108: ادوات نظافه | D108: EA.
A109: 420701133 | B109: منظف زجاج | C109: ادوات نظافه | D109: EA.
A110: 420701134 | B110: سكويزربدون | C110: ادوات نظافه | D110: EA.
A111: 420701135 | B111: جاروف بدون | C111: ادوات نظافه | D111: EA.
A112: 420701142 | B112: ملمع زجاج1 | C112: ادوات نظافه | D112: BOT
A113: 420701143 | B113: مقش بدن يد | C113: ادوات نظافه | D113: EA.
A114: 120605101 | B114: بالكيلو | C114: ارز سياحى | D114: KGM
A115: 120605103 | B115: أرز بسماتى | C115: ارز سياحى | D115: KGM
A116: 120605105 | B116: بسمتى مغلى | C116: ارز سياحى | D116: KGM
A117: 120605106 | B117: ارز3%كسر | C117: ارز سياحى | D117: KGM
A118: 110309304 | B118: تراوت | C118: اسماك مدخنة | D118: KGM
A119: 120309303 | B119: سيمون | C119: اسماك مدخنة | D119: KGM
A120: 120309305 | B120: تراوت مدخن | C120: اسماك مدخنة | D120: KGM
A121: 520508101 | B121: قاعدةملحة | C121: اطقم بلستيك | D121: THN
A122: 520508104 | B122: كيس 8×1 | C122: اطقم بلستيك | D122: EA.
A123: 520508110 | B123: كوفير 6×1 | C123: اطقم بلستيك | D123: EA.
A124: 520508112 | B124: كوفير1×11ش | C124: اطقم بلستيك | D124: EA.
A125: 520508114 | B125: كليبس ابيض | C125: اطقم بلستيك | D125: EA.
A126: 520508116 | B126: ك5×1بدون م | C126: اطقم بلستيك | D126: EA.
A127: 520508121 | B127: كوفير 11×1 | C127: اطقم بلستيك | D127: EA.
A128: 520508122 | B128: طقم كوفير | C128: اطقم بلستيك | D128: EA.
A129: 520508123 | B129: كوفير اكسب | C129: اطقم بلستيك | D129: EA.
A130: 520508125 | B130: كوفير4×1بد | C130: اطقم بلستيك | D130: EA.
A131: 520508126 | B131: كوفير10×1 | C131: اطقم بلستيك | D131: EA.
A132: 520508120 | B132: أ | C132: اطقم بلستيك1X10كوفير | D132: EA.
A133: 520508107 | B133: ش | C133: اطقم بلستيك1X11كوفير | D133: THN
A134: 520508105 | B134: ملعقة | C134: اطقم بلستيك2/1×9 | D134: THN
A135: 121101301 | B135: خ0مستور125 | C135: اكل طفل | D135: JAR
A136: 121101302 | B136: ف0مستور130 | C136: اكل طفل | D136: JAR
A137: 121101305 | B137: اكل طفل خض | C137: اكل طفل | D137: JAR
A138: 121101306 | B138: خضار120جم | C138: اكل طفل | D138: JAR
A139: 121101307 | B139: فاكهه125جم | C139: اكل طفل | D139: JAR
A140: 420907001 | B140: ق/استلم | C140: التموين | D140: EA.
A141: 420907006 | B141: فاتورة | C141: التموين | D141: EA.
A142: 420907015 | B142: كارت ترولى | C142: التموين | D142: EA.
A143: 420913005 | B143: ورق تصوير | C143: الدعايةوالعلم | D143: EA.
A144: 420904101 | B144: بدله طباخ | C144: القابضه لمصر للطيران | D144: EA.
A145: 420904102 | B145: بدله تموين | C145: القابضه لمصر للطيران | D145: EA.
A146: 420904109 | B146: بنطلون جبر | C146: القابضه لمصر للطيران | D146: EA.
A147: 420904110 | B147: جاكت/طباخ | C147: القابضه لمصر للطيران | D147: EA.
A148: 420904111 | B148: بنطلون طبا | C148: القابضه لمصر للطيران | D148: EA.
A149: 420904114 | B149: افرول خ كح | C149: القابضه لمصر للطيران | D149: EA.
A150: 420904141 | B150: سويت شيرت | C150: القابضه لمصر للطيران | D150: EA.
A151: 420904142 | B151: بولوشيرت | C151: القابضه لمصر للطيران | D151: EA.
A152: 420905001 | B152: أزن صرف | C152: المخازن | D152: EA.
A153: 420905003 | B153: أ/صرف يدوى | C153: المخازن | D153: EA.
A154: 420909002 | B154: دفتر احوال | C154: الموارد البشرية | D154: EA.
A155: 120307301 | B155: علبة50جرام | C155: انشوجةبالزيت | D155: TIN
A156: 510510102 | B156: ابريق ازرق | C156: اوعية بلستك | D156: EA.
A157: 510510103 | B157: غطاء ابريق | C157: اوعية بلستك | D157: EA.
A158: 210206201 | B158: علبة مخرمة | C158: اوعية بلستيك | D158: EA.
A159: 520506103 | B159: ابيض | C159: أكواب | D159: THN
A160: 520506104 | B160: شفاف | C160: أكواب | D160: THN
A161: 520506108 | B161: باول مستطل | C161: أكواب | D161: THN
A162: 520506113 | B162: كوب شفاف ج | C162: أكواب | D162: EA.
A163: 520506116 | B163: ب/ف/مربع أ | C163: أكواب | D163: EA.
A164: 520506117 | B164: غطاء باول | C164: أكواب | D164: EA.
A165: 520506118 | B165: طبق مستطيل | C165: أكواب | D165: EA.
A166: 520506119 | B166: باول 7,5 | C166: أكواب | D166: EA.
A167: 520506143 | B167: باول/م/نحا | C167: أكواب | D167: EA.
A168: 520506144 | B168: باول مستطي | C168: أكواب | D168: EA.
A169: 520506154 | B169: كوب8ونزشعا | C169: أكواب | D169: EA.
A170: 520506156 | B170: ط/ف/كحلى/م | C170: أكواب | D170: EA.
A171: 520506105 | B171: باول | C171: أكواب | D171: THN
A172: 120402202 | B172: مجمدة كجم0 | C172: بامية | D172: KGM
A173: 120101107 | B173: كبدة | C173: بتلو | D173: KGM
A174: 120101109 | B174: بتلومشفى | C174: بتلو | D174: KGM
A175: 120101110 | B175: ف/م 4أجزاء | C175: بتلو | D175: KGM
A176: 120101112 | B176: بتلوروزبيف | C176: بتلو | D176: KGM
A177: 120101115 | B177: فلتو بتلو | C177: بتلو | D177: KGM
A178: 120101117 | B178: كبدةبتلو/م | C178: بتلو | D178: KGM
A179: 120101123 | B179: ف/بتلو4قطع | C179: بتلو | D179: KGM
A180: 120608101 | B180: برغل كجم | C180: برغل/فريك | D180: KGM
A181: 120427102 | B181: بروكلىمجمد | C181: بروكلى | D181: KGM
A182: 121401310 | B182: تاك 40جرام | C182: بسكويت انواع | D182: PKT
A183: 121401460 | B183: بيك رولزص | C183: بسكويت انواع | D183: EA.
A184: 121401462 | B184: تونكيز | C184: بسكويت انواع | D184: EA.
A185: 121401490 | B185: كاكوفا36جر | C185: بسكويت انواع | D185: PKT
A186: 121401491 | B186: بسكوت وافر | C186: بسكويت انواع | D186: PKT
A187: 121401493 | B187: بسكوت لمبا | C187: بسكويت انواع | D187: PKT
A188: 121401508 | B188: بسكوكاكا24 | C188: بسكويت انواع | D188: PKT
A189: 121401646 | B189: شيبس34:30ج | C189: بسكويت انواع | D189: PKT
A190: 121401668 | B190: بوريو6قطع | C190: بسكويت انواع | D190: EA.
A191: 121401670 | B191: اوريو3قطع | C191: بسكويت انواع | D191: EA.
A192: 121401419 | B192: جم6قطع | C192: بسكويت انواع50 | D192: PKT
A193: 120401202 | B193: مجمدة كجم | C193: بسلة خضراء | D193: KGM
A194: 120401307 | B194: بسله بجزر | C194: بسلة خضراء | D194: KGM
A195: 120203102 | B195: بط مزارع | C195: بط | D195: EA.
A196: 120203103 | B196: صدربط مشفى | C196: بط | D196: KGM
A197: 120405102 | B197: بوم فريتس | C197: بطاطس | D197: KGM
A198: 120405110 | B198: بطا/روندال | C198: بطاطس | D198: KGM
A199: 120405303 | B199: بطاطس سوتي | C199: بطاطس | D199: KGM
A200: 120405306 | B200: بطاطس بودر | C200: بطاطس | D200: KGM
A201: 120405308 | B201: بطاطس هاش | C201: بطاطس | D201: KGM
A202: 120405309 | B202: كروكت فراخ | C202: بطاطس | D202: KGM
... 988 more rows

Sheet azzam
C4: م | D4: رقم الصنف | E4: الصنف | F4: المجموعه | G4: الوحده | H4: السعر | I4: رقم المورد | J4: اسم المورد | K4: رقم امر التوريد | L4: ملاحظات | P4: تاريخ التسجيل
D5: 120603299 | E5: كروسان 30 جرام | G5: EA. | H5: 1.9 | I5: 201 | J5: فانسي فودز | K5: 219606 | P5: 2021-12-01
D6: 120603300 | E6: فطير 30 جم | G6: ea. | H6: 1.9 | I6: 201 | J6: فانسي فودز | K6: 219606 | P6: 2021-12-01
D7: 120801113 | E7: جبنه بيضاء فيتا 125 جم | G7: tin | H7: 3.625 | I7: 578 | J7: ديرى ديستر بيوترز | K7: 221137 | P7: 2021-12-01
C8: 1 | D8: 120903104 | E8: لبن بالموز 200 ملل | F8: لبن طويل العمر | G8: pkt | H8: 2.9 | I8: a55 | J8: الاسكندريه الزراعيه لمار | K8: 221128 | P8: 2021-12-01
C9: 2 | D9: 120903105 | E9: لبن فراوله 200 ملل | F9: لبن طويل العمر | G9: pkt | H9: 2.9 | I9: a55 | J9: الاسكندريه الزراعيه لمار | K9: 221128 | P9: 2021-12-01
D10: 120903311 | E10: لبن طويل العمر نصف لتر | G10: PKT | P10: 2021-12-01
C11: 3 | D11: 120903317 | E11: لبن 200 ملل | F11: لبن طويل العمر | G11: pkt | H11: 2.75 | I11: a55 | J11: الاسكندريه الزراعيه لمار | K11: 221128 | P11: 2021-12-01
C12: 4 | D12: 120903318 | E12: لبن منزوع الدسم 1 لتر | F12: لبن0منزوع0 | G12: ltr | H12: 12.4 | I12: a55 | J12: الاسكندريه الزراعيه لمار | K12: 221128 | P12: 2021-12-01
C13: 5 | D13: 120903323 | E13: لبن خالى الدسم 200 ملل | F13: لبن طويل العمر | G13: tin | H13: 2.75 | I13: a55 | J13: الاسكندريه الزراعيه لمار | K13: 221128 | P13: 2021-12-01
C14: 1 | D14: 120903326 | E14: لبن رايب 220 جم | F14: لبن طويل العمر | G14: bot | H14: 3.5 | I14: 578 | J14: ديرى ديستر بيوترز | K14: 221137 | P14: 2021-12-01
C15: 10 | D15: 120903332 | E15: لبن كامل الدسم طويل العمر 1 لتر | F15: لبن طويل العمر | G15: LTR | H15: 11.2 | I15: 180 | J15: جهينه | K15: 221124 | P15: 2021-12-01
C16: 6 | D16: 120903333 | E16: لبن نصف دسم 1 لتر | F16: لبن طويل العمر | G16: LTR | H16: 12.4 | I16: a55 | J16: الاسكندريه الزراعيه لمار | K16: 221128 | P16: 2021-12-01
D17: 120903335 | E17: لبن بودره - ك | F17: لبن طويل العمر | G17: kgm | P17: 2021-11-01
C18: 2 | D18: 120904322 | E18: زبادى سادة 105 جرام | F18: زبادى105جم | G18: ea. | H18: 1.87 | I18: 578 | J18: ديرى ديستر بيوترز | K18: 221137 | P18: 2021-11-01
C19: 3 | D19: 120904323 | E19: زبادى 75 جرام ساده | G19: ea. | H19: 1.42 | I19: 578 | J19: ديرى ديستر بيوترز | K19: 221137 | P19: 2021-11-01
C20: 11 | D20: 120904324 | E20: زبادى دايت 105 جرام | F20: زدايت105جم | G20: ea. | H20: 1.87 | I20: 180 | J20: جهينه | K20: 221124 | P20: 2021-11-01
D21: 120904325 | E21: زبادى بالفاكهة 75 جم | F21: ز-فاكهة75ج | G21: ea. | P21: 2021-11-01
C22: 12 | D22: 120904326 | E22: زبادى عبوات بالكيلو | F22: زبادىكيلو | G22: kgm | H22: 11.5 | I22: 180 | J22: جهينه | K22: 221124 | P22: 2021-11-01
C23: 4 | D23: 120904328 | E23: مشروب زبادى خوخ 220مللى | F23: مشروب خوخ0 | G23: ea. | H23: 3.7 | I23: 578 | J23: ديرى ديستر بيوترز | K23: 221137 | P23: 2021-11-01
C24: 5 | D24: 120904339 | E24: ز/فروله 220 ملل | F24: زبادىكيلو | G24: ea. | H24: 3.7 | I24: 578 | J24: ديرى ديستر بيوترز | K24: 221137 | P24: 2021-11-01
C25: 6 | D25: 120904340 | E25: ز/مانجو 220 | F25: زبادىكيلو | G25: ea. | H25: 3.7 | I25: 578 | J25: ديرى ديستر بيوترز | K25: 221137 | P25: 2021-11-01
C26: 7 | D26: 120904341 | E26: رايب 220 منجو | F26: زبادىكيلو | H26: 3.5 | I26: 578 | J26: ديرى ديستر بيوترز | K26: 221137 | P26: 2021-12-01
C27: 8 | D27: 120904342 | E27: رايب 220 فروله | F27: زبادىكيلو | H27: 3.5 | I27: 578 | J27: ديرى ديستر بيوترز | K27: 221137 | P27: 2021-12-01
D28: 120906001 | E28: جزربدون عر | F28: خضار وفاكهه | G28: KGM | P28: 2021-12-01
D29: 120906003 | E29: نعناع أخضر | F29: خضار وفاكهه | G29: KGM | P29: 2021-12-01
D30: 120906004 | E30: فلفل اخضر | F30: خضار وفاكهه | G30: KGM | P30: 2021-12-01
D31: 120906005 | E31: جرجير | F31: خضار وفاكهه | G31: kgm | P31: 2021-12-01
D32: 120906006 | E32: سلق | F32: خضار وفاكهه | G32: kgm | P32: 2021-12-01
D33: 120906007 | E33: خيار | F33: خضار وفاكهه | G33: KGM | P33: 2021-12-01
D34: 120906008 | E34: كرفس فرنس | F34: خضار وفاكهه | G34: KGM | P34: 2021-12-01
D35: 120906009 | E35: كابوتشا | F35: خضار وفاكهه | G35: KGM | P35: 2021-12-01
D36: 120906010 | E36: بازنجان رو | F36: خضار وفاكهه | G36: KGM | P36: 2021-12-01
D37: 120906011 | E37: بازنجان بل | F37: خضار وفاكهه | G37: KGM | P37: 2021-12-01
D38: 120906013 | E38: كرفس بلدى | F38: خضار وفاكهه | G38: KGM | P38: 2021-12-01
D39: 120906015 | E39: فاصوليا خض | F39: خضار وفاكهه | G39: KGM | P39: 2021-12-01
D40: 120906016 | E40: ليمون بلدى | F40: خضار وفاكهه | G40: KGM | P40: 2021-12-01
D41: 120906017 | E41: طماطم سلطه | F41: خضار وفاكهه | G41: KGM | P41: 2021-12-01
D42: 120906018 | E42: ليمون أضال | F42: خضار وفاكهه | G42: KGM | P42: 2021-12-01
D43: 120906019 | E43: بطاطس | F43: خضار وفاكهه | G43: KGM | P43: 2021-12-01
D44: 120906020 | E44: كرنب أحمر | F44: خضار وفاكهه | G44: KGM | P44: 2021-12-01
D45: 120906021 | E45: بصل اخضر | F45: خضار وفاكهه | G45: kgm | P45: 2021-12-01
D46: 120906022 | E46: شبت | F46: خضار وفاكهه | G46: KGM | P46: 2021-01-24
D47: 120906023 | E47: كسبره خضرا | F47: خضار وفاكهه | G47: KGM | P47: 2021-01-24
D48: 120906024 | E48: بقدونس | F48: خضار وفاكهه | G48: KGM | P48: 2022-03-07
D49: 120906025 | E49: بصل جاف بل | F49: خضار وفاكهه | G49: KGM | P49: 2021-10-04
D50: 120906027 | E50: كوسه نوار | F50: خضار وفاكهه | G50: KGM | P50: 2021-10-04
D51: 120906029 | E51: فينو كيا بدو | F51: خضار وفاكهه | G51: kgm | P51: 2022-03-07
D52: 120906030 | E52: قرع عسل | F52: خضار وفاكهه | G52: KGM | P52: 2022-03-07
D53: 120906031 | E53: بروكلى | F53: خضار وفاكهه | G53: KGM | P53: 2022-03-07
D54: 120906032 | E54: طماطم شيرى | F54: خضار وفاكهه | G54: KGM | P54: 2022-03-07
D55: 120906033 | E55: فلفل روم ص | F55: خضار وفاكهه | G55: KGM
D56: 120906034 | E56: فلفل روم ح | F56: خضار وفاكهه | G56: KGM
D57: 120906035 | E57: فلفل شطه | F57: خضار وفاكهه | G57: KGM
D58: 120906036 | E58: كوسه كبيره | F58: خضار وفاكهه | G58: KGM
D59: 120906037 | E59: مشروم طازج | F59: خضار وفاكهه | G59: KGM
D60: 120906038 | E60: افاوكادوا | F60: خضار وفاكهه | G60: KGM
D61: 120906039 | E61: روز مارى | F61: خضار وفاكهه | G61: KGM
D62: 120906040 | E62: لولو روسو | F62: خضار وفاكهه | G62: KGM
D63: 120906042 | E63: زعتر | F63: خضار وفاكهه | G63: KGM
D64: 120906043 | E64: ريحان | F64: خضار وفاكهه | G64: KGM
D65: 120906044 | E65: كرنب ابيض | F65: خضار وفاكهه | G65: EA.
D66: 120906045 | E66: سبانخ | F66: خضار وفاكهه | G66: KGM
D67: 120906046 | E67: كرات بدون | F67: خضار وفاكهه | G67: kgm
D68: 120906047 | E68: بنجر بدون | F68: خضار وفاكهه | G68: KGM
D69: 120906049 | E69: اسبارجوس | F69: خضار وفاكهه | G69: KGM
D70: 120906050 | E70: ثوم صينى | F70: خضار وفاكهه | G70: KGM
D71: 120906051 | E71: خس احمر | F71: خضار وفاكهه | G71: KGM
D72: 120906054 | E72: جنزبيل | F72: خضار وفاكهه | G72: kgm
D73: 120906055 | E73: خس كورى | F73: خضار وفاكهه | G73: KGM
D74: 120906056 | E74: بيك شوى | F74: خضار وفاكهه | G74: KGM
D75: 120906057 | E75: ريجانو | F75: خضار وفاكهه | G75: KGM
D76: 120906059 | E76: جزر بيبى | F76: خضار وفاكهه | G76: KGM
D77: 120906060 | E77: كوسه بيبي | F77: خضار وفاكهه | G77: KGM
D78: 120906061 | E78: بصل اورما | F78: خضار وفاكهه | G78: KGM
D79: 120906062 | E79: ثوم بلدى ب | F79: خضار وفاكهه | G79: KGM
D80: 120906063 | E80: بطاطا | F80: خضار وفاكهه | G80: KGM
D81: 120906064 | E81: خس فريزيه | F81: خضار وفاكهه | G81: KGM
D82: 120906065 | E82: بصل شيفيز | F82: خضار وفاكهه | G82: KGM
D83: 120906068 | E83: قرنبيط | F83: خضار وفاكهه | G83: KGM
D84: 120906069 | E84: بصل احمر بل | F84: خضار وفاكهه | G84: kgm
D85: 120906502 | E85: عنب احمر | F85: خضار وفاكهه | G85: KGM
D86: 120906503 | E86: موز مستورد | F86: خضار وفاكهه | G86: KGM
D87: 120906504 | E87: كمثرى مستو | F87: خضار وفاكهه | G87: KGM
D88: 120906505 | E88: برقوق مستو | F88: خضار وفاكهه | G88: KGM
D89: 120906507 | E89: عنب اسود | F89: خضار وفاكهه | G89: KGM
D90: 120906508 | E90: كيوى مستور | F90: خضار وفاكهه | G90: EA.
D91: 120906509 | E91: خوخ مستورد | F91: خضار وفاكهه | G91: KGM
D92: 120906511 | E92: انانس مستو | F92: خضار وفاكهه | G92: KGM
D93: 120906512 | E93: موز مزارع | F93: خضار وفاكهه | G93: KGM
D94: 120906514 | E94: تفاح اخضرم | F94: خضار وفاكهه | G94: KGM
D95: 120906515 | E95: تفاح احمرم | F95: خضار وفاكهه | G95: KGM
D96: 120906516 | E96: تفاح اصفرم | F96: خضار وفاكهه | G96: KGM
D97: 120906517 | E97: مانجو عويس | F97: خضار وفاكهه | G97: kgm
D98: 120906518 | E98: برتقال بصر | F98: خضار وفاكهه | G98: KGM
D99: 120906519 | E99: برتقال بلد | F99: خضار وفاكهه | G99: kgm
D100: 120906520 | E100: برتقال سكر | F100: خضار وفاكهه | G100: kgm
D101: 120906521 | E101: برتقال صيف | F101: خضار وفاكهه | G101: KGM
D102: 120906522 | E102: يوسفى كبير | F102: خضار وفاكهه | G102: KGM
D103: 120906526 | E103: برقوق اصفر | F103: خضار وفاكهه | G103: kgm
D104: 120906527 | E104: خوخ كبير ممتاز | F104: خضار وفاكهه | G104: kgm
D105: 120906528 | E105: مشمش كبير م | F105: خضار وفاكهه | G105: kgm
D106: 120906529 | E106: برقوق سانت | F106: خضار وفاكهه | G106: kgm
D107: 120906531 | E107: فراولةطازج | F107: خضار وفاكهه | G107: KGM
D108: 120906532 | E108: كمثرى خشاب | F108: خضار وفاكهه | G108: kgm
D109: 120906533 | E109: كانتلوب مم | F109: خضار وفاكهه | G109: KGM
D110: 120906534 | E110: خوخ سينا | F110: خضار وفاكهه | G110: KGM
D111: 120906540 | E111: جوافة نبات | F111: خضار وفاكهه | G111: KGM
D112: 120906541 | E112: جريب فروت | F112: خضار وفاكهه | G112: KGM
D113: 120906543 | E113: بطيخ5كيلوف | F113: خضار وفاكهه | G113: KGM
D114: 120906544 | E114: يوسفىتانجد | F114: خضار وفاكهه | G114: KGM
D115: 120906545 | E115: رومان | F115: خضار وفاكهه | G115: KGM
D116: 120906547 | E116: مانجوتيمور | F116: خضار وفاكهه | G116: KGM
D117: 120906549 | E117: عنب أحمرمس | F117: خضار وفاكهه | G117: KGM
D118: 120906553 | E118: جرجير روكلا | F118: خضار وفاكهه | G118: kgm
D119: 120906554 | E119: خس الوان | F119: خضار وفاكهه | G119: kgm
D120: 120906555 | E120: بنجان بيبيى | F120: خضار وفاكهه | G120: kgm
D121: 120906556 | E121: بطاطس بيبى | F121: خضار وفاكهه | G121: KGM
D122: 120906557 | E122: حلبه منبتته | F122: خضار وفاكهه | G122: kgm
D123: 120906558 | E123: ريحان اخضر | F123: خضار وفاكهه | G123: kgm
D124: 120906559 | E124: ريحان احمر | F124: خضار وفاكهه | G124: kgm
D125: 120906565 | E125: كرنب ابيض | F125: خضار وفاكهه | G125: kgm
D126: 320102326 | E126: كوكاولا 330 ملل م | F126: مياع غازيه | G126: tin
D127: 320102327 | E127: فانتابرتقال 330 ملل | F127: مياه غازيه كبير | G127: tin
D128: 320102328 | E128: اسبرايت 330 ملل | F128: مياه غازيه كبير | G128: tin
C129: 1 | D129: 320102332 | E129: كولا لايت 330 م | F129: مياه غازيه كبيرة | G129: tin | H129: 2.1 | I129: 305 | J129: بيبسى | K129: 221092
D130: 320102333 | E130: بيبسى 330 ملل | G130: tin
C131: 2 | D131: 320102340 | E131: ليمون دايت 330 ملل | F131: مياه غازيه | G131: tin | H131: =50.4/24 -> 2.1 | I131: 305 | J131: بيبسى | K131: 221092
D132: 320102361 | E132: سفن اب 330 ملل | G132: tin
D133: 320102362 | E133: ميرندا 330 ملل | G133: tin
C134: 3 | D134: 320102376 | E134: برتقال 250 ملل | F134: مياه غازيه كبير | G134: tin | H134: 1.95 | I134: 305 | J134: بيبسى | K134: 221092
C135: 4 | D135: 320102378 | E135: ليمون 250 ملل | F135: مياه غازيه كبير | G135: tin | H135: 1.95 | I135: 305 | J135: بيبسى | K135: 221092
C136: 5 | D136: 320102385 | E136: كولا 250 ملل | F136: مياه غازيه كبير | G136: tin | H136: 1.95 | I136: 305 | J136: بيبسى | K136: 221092
D137: 320102408 | E137: زيرو 330 ملل | F137: مياه غازيه كبير
D138: 320102414 | E138: س / زيرو 330 ملل | F138: مياه معدنيه
D139: 320104306 | E139: مشروب شعير بدو اناناس 330 | F139: مشروب شعير
D140: 320104314 | E140: بدو خوخ 330 ملل | F140: مشروب شعير
D141: 320104325 | E141: جولد اناناس 300 ملل | F141: مشروب شعير | G141: tin | H141: 3.35 | I141: 574 | J141: كوكا كولا مصر | K141: 21688
D142: 320104326 | E142: جولد شعير خوخ 300 ملل | F142: مشروب شعير | G142: tin | H142: 3.35 | I142: 574 | J142: كوكا كولا مصر | K142: 21688
C143: 6 | D143: 320105001 | E143: كولا 1 لتر | F143: مياه غازيه كبير | G143: bot | H143: 2.33 | I143: 305 | J143: بيبسى | K143: 221092
D144: 320105002 | E144: كولاد دايت 1 لتر | F144: مياه غازيه كبير | G144: Bot
C145: 7 | D145: 320105003 | E145: ليمون 1 لتر | F145: مياه غازيه كبير | G145: Bot | H145: 2.33 | I145: 305 | J145: بيبسى | K145: 221092
C146: 8 | D146: 320105005 | E146: برتقال 1 لتر | F146: مياه غازيه كبير | G146: Bot | H146: 2.33 | I146: 305 | J146: بيبسى | K146: 221092
D147: 320105006 | E147: كولا 970 ملل | F147: مشروبات غازية | G147: bot
D148: 320105007 | E148: كولا لايت 970 ملل | F148: مشروبات غازية | G148: bot | H148: 2.33 | I148: 305 | J148: بيبسى | K148: 021770
D149: 320105008 | E149: ليمون 970 ملل | F149: مشروبات غازية | G149: bot | H149: 2.33 | I149: 305 | J149: بيبسى | K149: 221092
C150: 9 | D150: 320105009 | E150: ل/لايت 970 ملل | F150: مشروبات غازية | G150: Bot | H150: 2.33 | I150: 305 | J150: بيبسى | K150: 221092
D151: 320105010 | E151: برتقال 970 ملل | F151: مشتروبات غازية | G151: bot
D152: 320106001 | E152: صودا اوتر 250 | F152: مياه غازيه | G152: bot | H152: 2.35 | I152: 574 | J152: كوكا كولا مصر | K152: 21688
D153: 320106002 | E153: تونيك 250 ممل | F153: مياه غازيه | G153: Bot | H153: 2.35 | I153: 574 | J153: كوكا كولا مصر | K153: 21688
C154: 13 | D154: 320304301 | E154: برتقال 1 لتر | F154: عصير علب كرتون 1لتر | G154: LTR | H154: =77.64/12 -> 6.47 | I154: 180 | J154: جهينه | K154: 221122
C155: 14 | D155: 320304302 | E155: تفاح 1 لتر | F155: عصير علب كرتون 1لتر | G155: LTR | H155: =75.48/12 -> 6.29 | I155: 180 | J155: جهينه | K155: 221122
C156: 15 | D156: 320304303 | E156: مانجو 1لتر | F156: عصير علب كرتون 1لتر | G156: LTR | H156: =77.64/12 -> 6.47 | I156: 180 | J156: جهينه | K156: 221122
C157: 16 | D157: 320304305 | E157: جوافة1لتر | F157: عصير علب كرتون 1لتر | G157: LTR | H157: =77.88/12 -> 6.49 | I157: 180 | J157: جهينه | K157: 221122
C158: 7 | D158: 320304306 | E158: تفاح/غ/م 1لتر | F158: عصير علب كرتون 1لتر | G158: LTR | H158: 11.1 | I158: a55 | J158: الاسكندريه الزراعيه لمار | K158: 221252
C159: 17 | D159: 320304307 | E159: برتقال/غ/م 1 لتر | F159: عصير علب كرتون 1لتر | G159: LTR | H159: =134.4/12 -> 11.2 | I159: 180 | J159: جهينه | K159: 221122
C160: 8 | D160: 320304317 | E160: اناناس غ م 1 لتر | F160: عصير علب كرتون 1لتر | G160: LTR | H160: 11.1 | I160: a55 | J160: الاسكندريه الزراعيه لمار | K160: 221252
D161: 320304318 | E161: جزر برتقال | F161: عصير علب كرتون 1لتر | G161: LTR
C162: 9 | D162: 320304322 | E162: ع/طمطم غير 1 لتر | F162: عصير علب كرتون 1لتر | G162: LTR | H162: =133.2/12 -> 11.1 | I162: a55 | J162: الاسكندريه الزراعيه لمار | K162: 221252
C163: 10 | D163: 320305304 | E163: اناناس 200 | F163: عصير انواع | G163: crt | H163: =39.15/27 -> 1.45 | I163: a55 | J163: الاسكندريه الزراعيه لمار | K163: 221252
C164: 11 | D164: 320305305 | E164: عصير كوكتيل 200 ملل | F164: عصير انواع | G164: pkt | H164: =39.15/27 -> 1.45 | I164: a55 | J164: الاسكندريه الزراعيه لمار | K164: 221129
C165: 12 | D165: 320305307 | E165: عصير برتقال 200 ملل من غير سكر | F165: عصير انواع | G165: tin | H165: =74.25/27 -> 2.75 | I165: a55 | J165: الاسكندريه الزراعيه لمار | K165: 221130 كافتريا
C166: 13 | D166: 320305359 | E166: عصير تفاح 200 ملل من غير سكر | F166: عصير انواه | G166: tin | H166: 2.75 | I166: a55 | J166: الاسكندريه الزراعيه لمار | K166: 221129
C167: 18 | D167: 320305427 | E167: تفاح/م235م | F167: عصير انواع | G167: TIN | H167: 1.4 | I167: 180 | J167: جهينه | K167: 221122
C168: 19 | D168: 320305428 | E168: ع/جوافة235 | F168: عصير انواع | G168: TIN | H168: 1.4 | I168: 180 | J168: جهينه | K168: 221122
C169: 20 | D169: 320305429 | E169: ع/مانجو235 | F169: عصير انواع | G169: TIN | H169: 1.4 | I169: 180 | J169: جهينه | K169: 221122
C170: 21 | D170: 320305430 | E170: ع/برتقل235 | F170: عصير انواع | G170: TIN | H170: 1.4 | I170: 180 | J170: جهينه | K170: 221122
D171: 320305431 | E171: عصير اناناس 235 ملل | F171: عصير انواع | G171: tin
D172: 320305431 | E172: أناناس 235 ملل | F172: عصير انواع | G172: tin
D173: 320305432 | E173: عصير كوكتيل 235 ملل | F173: عصير انواع | G173: tin
D174: 320305432 | E174: كوكتيل 235 ملل | F174: عصير انواع | G174: tin
D175: 320305433 | E175: برتقا235بى | F175: عصير انواع | G175: tin
D176: 320305434 | E176: تفاح235بيو | F176: عصير انواع | G176: tin
D177: 320305437 | E177: عصير اناناس بيور 235 ملل | F177: عصير انواع | G177: Tin
D178: 320305957 | E178: كوكتيل بيور 235 ملل | F178: عصير انواع | G178: TIN
C179: 14 | D179: 320305967 | E179: عصير طماطم 200 ملل بدون سكر | F179: عصير انواع | G179: tin | H179: 2.75 | I179: a55 | J179: الاسكندريه الزراعيه لمار | K179: 221129
C180: 15 | D180: 320305968 | E180: عصير مانجو 200 ملل بدون سكر | F180: عصير انواع | G180: tin | H180: 2.75 | I180: a55 | J180: الاسكندريه الزراعيه لمار | K180: 221129
C181: 16 | D181: 320305969 | E181: عصير رومان 200 ملل بدون سكر | F181: عصير انواع | G181: tin | H181: 2.75 | I181: a55 | J181: الاسكندريه الزراعيه لمار | K181: 221129
D182: 320401502 | E182: مياه 1.5 لتر | F182: مياه معدنيه | G182: bot | H182: =18.84/12 -> 1.57 | I182: 492 | J182: سيوه للتصنيع | K182: 221244 | M182: 44665
D183: 320401509 | E183: مياه 600 ملل | F183: مياه معدنيه | G183: Bot | H183: =17.6/20 -> 0.88 | I183: 305 | J183: بيبسى | K183: 021781 | L183: س مناقصه عامه | M183: 44665
D184: 320401523 | E184: مياه 330 ملل | F184: مياه معدنيه | G184: bot | H184: 0.91 | I184: 492 | J184: سيوه للتصنيع | K184: 221244 | L184: تموين | M184: 44665

Sheet GR
B1: 0
E2: تفريغ اسعار أذن فحص واستلام | H2: رقم | I2: 3584
E3: المورد / | F3: =J5 -> بيبسى | H3: المؤرخ : | I3: 2022-08-03
B4: 0 | C4: رقم الصنف | D4: الصنف | E4: وحده الصرف | F4: الكميه الوارده | G4: سعر الوحده | H4: السعر الكلى | I4: رقم المورد | J4: المورد | K4: رقم امر التوريد
B5: 1 | C5: 320401509 | D5: =IF(C5<>"",VLOOKAnyCol(azzam,C5,2,3),"") -> مياه 600 ملل | E5: =IF(C5<>"",VLOOKAnyCol(azzam,C5,2,5),"") -> Bot | F5: 12400 | G5: =IF(C5<>"",VLOOKAnyCol(azzam,C5,2,6),"") -> 0.88 | H5: =IF(F5<>"",F5*G5,"") -> 10912 | I5: =IF(C5<>"",VLOOKAnyCol(azzam,C5,2,7),"") -> 305 | J5: =IF(C5<>"",VLOOKAnyCol(azzam,C5,2,8),"") -> بيبسى | K5: =IF(C5<>"",VLOOKAnyCol(azzam,C5,2,9),"") -> 021781
B6: 2 | D6: =IF(C6<>"",VLOOKAnyCol(azzam,C6,2,3),"") ->  | E6: =IF(C6<>"",VLOOKAnyCol(azzam,C6,2,5),"") ->  | G6: =IF(C6<>"",VLOOKAnyCol(azzam,C6,2,6),"") ->  | H6: =IF(F6<>"",F6*G6,"") ->  | I6: =IF(C6<>"",VLOOKAnyCol(azzam,C6,2,7),"") ->  | J6: =IF(C6<>"",VLOOKAnyCol(azzam,C6,2,8),"") ->  | K6: =IF(C6<>"",VLOOKAnyCol(azzam,C6,2,9),"") -> 
B7: 3 | D7: =IF(C7<>"",VLOOKAnyCol(azzam,C7,2,3),"") ->  | E7: =IF(C7<>"",VLOOKAnyCol(azzam,C7,2,5),"") ->  | G7: =IF(C7<>"",VLOOKAnyCol(azzam,C7,2,6),"") ->  | I7: =IF(C7<>"",VLOOKAnyCol(azzam,C7,2,7),"") ->  | J7: =IF(C7<>"",VLOOKAnyCol(azzam,C7,2,8),"") ->  | K7: =IF(C7<>"",VLOOKAnyCol(azzam,C7,2,9),"") -> 
B8: 4 | D8: =IF(C8<>"",VLOOKAnyCol(azzam,C8,2,3),"") ->  | E8: =IF(C8<>"",VLOOKAnyCol(azzam,C8,2,5),"") ->  | G8: =IF(C8<>"",VLOOKAnyCol(azzam,C8,2,6),"") ->  | I8: =IF(C8<>"",VLOOKAnyCol(azzam,C8,2,7),"") ->  | J8: =IF(C8<>"",VLOOKAnyCol(azzam,C8,2,8),"") ->  | K8: =IF(C8<>"",VLOOKAnyCol(azzam,C8,2,9),"") -> 
B9: 5 | D9: =IF(C9<>"",VLOOKAnyCol(azzam,C9,2,3),"") ->  | E9: =IF(C9<>"",VLOOKAnyCol(azzam,C9,2,5),"") ->  | G9: =IF(C9<>"",VLOOKAnyCol(azzam,C9,2,6),"") ->  | I9: =IF(C9<>"",VLOOKAnyCol(azzam,C9,2,7),"") ->  | J9: =IF(C9<>"",VLOOKAnyCol(azzam,C9,2,8),"") ->  | K9: =IF(C9<>"",VLOOKAnyCol(azzam,C9,2,9),"") -> 
D10: =IF(C10<>"",VLOOKAnyCol(azzam,C10,2,3),"") ->  | E10: =IF(C10<>"",VLOOKAnyCol(azzam,C10,2,5),"") ->  | G10: =IF(C10<>"",VLOOKAnyCol(azzam,C10,2,6),"") ->  | I10: =IF(C10<>"",VLOOKAnyCol(azzam,C10,2,7),"") ->  | J10: =IF(C10<>"",VLOOKAnyCol(azzam,C10,2,8),"") ->  | K10: =IF(C10<>"",VLOOKAnyCol(azzam,C10,2,9),"") -> 
D11: =IF(C11<>"",VLOOKAnyCol(azzam,C11,2,3),"") ->  | E11: =IF(C11<>"",VLOOKAnyCol(azzam,C11,2,5),"") ->  | G11: =IF(C11<>"",VLOOKAnyCol(azzam,C11,2,6),"") ->  | I11: =IF(C11<>"",VLOOKAnyCol(azzam,C11,2,7),"") ->  | J11: =IF(C11<>"",VLOOKAnyCol(azzam,C11,2,8),"") ->  | K11: =IF(C11<>"",VLOOKAnyCol(azzam,C11,2,9),"") -> 
D12: =IF(C12<>"",VLOOKAnyCol(azzam,C12,2,3),"") ->  | E12: =IF(C12<>"",VLOOKAnyCol(azzam,C12,2,5),"") ->  | G12: =IF(C12<>"",VLOOKAnyCol(azzam,C12,2,6),"") ->  | I12: =IF(C12<>"",VLOOKAnyCol(azzam,C12,2,7),"") ->  | J12: =IF(C12<>"",VLOOKAnyCol(azzam,C12,2,8),"") ->  | K12: =IF(C12<>"",VLOOKAnyCol(azzam,C12,2,9),"") -> 
D13: =IF(C13<>"",VLOOKAnyCol(azzam,C13,2,3),"") ->  | E13: =IF(C13<>"",VLOOKAnyCol(azzam,C13,2,5),"") ->  | G13: =IF(C13<>"",VLOOKAnyCol(azzam,C13,2,6),"") ->  | I13: =IF(C13<>"",VLOOKAnyCol(azzam,C13,2,7),"") ->  | J13: =IF(C13<>"",VLOOKAnyCol(azzam,C13,2,8),"") ->  | K13: =IF(C13<>"",VLOOKAnyCol(azzam,C13,2,9),"") -> 
D14: =IF(C14<>"",VLOOKAnyCol(azzam,C14,2,3),"") ->  | E14: =IF(C14<>"",VLOOKAnyCol(azzam,C14,2,5),"") ->  | G14: =IF(C14<>"",VLOOKAnyCol(azzam,C14,2,6),"") ->  | I14: =IF(C14<>"",VLOOKAnyCol(azzam,C14,2,7),"") ->  | J14: =IF(C14<>"",VLOOKAnyCol(azzam,C14,2,8),"") ->  | K14: =IF(C14<>"",VLOOKAnyCol(azzam,C14,2,9),"") -> 
D15: =IF(C15<>"",VLOOKAnyCol(azzam,C15,2,3),"") ->  | E15: =IF(C15<>"",VLOOKAnyCol(azzam,C15,2,5),"") ->  | G15: =IF(C15<>"",VLOOKAnyCol(azzam,C15,2,6),"") ->  | I15: =IF(C15<>"",VLOOKAnyCol(azzam,C15,2,7),"") ->  | J15: =IF(C15<>"",VLOOKAnyCol(azzam,C15,2,8),"") ->  | K15: =IF(C15<>"",VLOOKAnyCol(azzam,C15,2,9),"") -> 
D16: =IF(C16<>"",VLOOKAnyCol(azzam,C16,2,3),"") ->  | E16: =IF(C16<>"",VLOOKAnyCol(azzam,C16,2,5),"") ->  | G16: =IF(C16<>"",VLOOKAnyCol(azzam,C16,2,6),"") ->  | I16: =IF(C16<>"",VLOOKAnyCol(azzam,C16,2,7),"") ->  | J16: =IF(C16<>"",VLOOKAnyCol(azzam,C16,2,8),"") ->  | K16: =IF(C16<>"",VLOOKAnyCol(azzam,C16,2,9),"") -> 
D17: =IF(C17<>"",VLOOKAnyCol(azzam,C17,2,3),"") ->  | E17: =IF(C17<>"",VLOOKAnyCol(azzam,C17,2,5),"") ->  | G17: =IF(C17<>"",VLOOKAnyCol(azzam,C17,2,6),"") ->  | I17: =IF(C17<>"",VLOOKAnyCol(azzam,C17,2,7),"") ->  | J17: =IF(C17<>"",VLOOKAnyCol(azzam,C17,2,8),"") ->  | K17: =IF(C17<>"",VLOOKAnyCol(azzam,C17,2,9),"") -> 
D18: =IF(C18<>"",VLOOKAnyCol(azzam,C18,2,3),"") ->  | E18: =IF(C18<>"",VLOOKAnyCol(azzam,C18,2,5),"") ->  | G18: =IF(C18<>"",VLOOKAnyCol(azzam,C18,2,6),"") ->  | I18: =IF(C18<>"",VLOOKAnyCol(azzam,C18,2,7),"") ->  | J18: =IF(C18<>"",VLOOKAnyCol(azzam,C18,2,8),"") ->  | K18: =IF(C18<>"",VLOOKAnyCol(azzam,C18,2,9),"") -> 
D19: =IF(C19<>"",VLOOKAnyCol(azzam,C19,2,3),"") ->  | E19: =IF(C19<>"",VLOOKAnyCol(azzam,C19,2,5),"") ->  | G19: =IF(C19<>"",VLOOKAnyCol(azzam,C19,2,6),"") ->  | I19: =IF(C19<>"",VLOOKAnyCol(azzam,C19,2,7),"") ->  | J19: =IF(C19<>"",VLOOKAnyCol(azzam,C19,2,8),"") ->  | K19: =IF(C19<>"",VLOOKAnyCol(azzam,C19,2,9),"") -> 
D20: =IF(C20<>"",VLOOKAnyCol(azzam,C20,2,3),"") ->  | E20: =IF(C20<>"",VLOOKAnyCol(azzam,C20,2,5),"") ->  | G20: =IF(C20<>"",VLOOKAnyCol(azzam,C20,2,6),"") ->  | I20: =IF(C20<>"",VLOOKAnyCol(azzam,C20,2,7),"") ->  | J20: =IF(C20<>"",VLOOKAnyCol(azzam,C20,2,8),"") ->  | K20: =IF(C20<>"",VLOOKAnyCol(azzam,C20,2,9),"") -> 
D21: =IF(C21<>"",VLOOKAnyCol(azzam,C21,2,3),"") ->  | E21: =IF(C21<>"",VLOOKAnyCol(azzam,C21,2,5),"") ->  | G21: =IF(C21<>"",VLOOKAnyCol(azzam,C21,2,6),"") ->  | I21: =IF(C21<>"",VLOOKAnyCol(azzam,C21,2,7),"") ->  | J21: =IF(C21<>"",VLOOKAnyCol(azzam,C21,2,8),"") ->  | K21: =IF(C21<>"",VLOOKAnyCol(azzam,C21,2,9),"") -> 
G22: =IF(C22<>"",VLOOKAnyCol(azzam,C22,2,6),"") ->  | I22: =IF(C22<>"",VLOOKAnyCol(azzam,C22,2,7),"") ->  | J22: =IF(C22<>"",VLOOKAnyCol(azzam,C22,2,8),"") ->  | K22: =IF(C22<>"",VLOOKAnyCol(azzam,C22,2,9),"") -> 
D23: =IF(C23<>"",VLOOKAnyCol(azzam,C23,2,3),"") ->  | E23: =IF(C23<>"",VLOOKAnyCol(azzam,C23,2,5),"") ->  | G23: =IF(C23<>"",VLOOKAnyCol(azzam,C23,2,6),"") ->  | H23: =SUBTOTAL(109,H5:H22) -> 10912 | I23: =I212510=IF(C23<>"",VLOOKAnyCol(azzam,C23,2,7),"") -> TRUE | J23: =IF(C23<>"",VLOOKAnyCol(azzam,C23,2,8),"") ->  | K23: =IF(C23<>"",VLOOKAnyCol(azzam,C23,2,9),"") -> 
D24: =kh_TextNum(H24,0,"جنيها","جنيهات","قرش",2) -> فقط لاغـــير عشرة آلاف وتسعمائة واثنا عشر جنيها | H24: =SUM(H5:H22) -> 10912
H25: =SUM(H5:H23) -> 21824

Sheet index
C5: مصر للطيران للخدمات الجويه
C6: قطاع الخدمات
C7: الاداره العامة للمشتريات

Sheet price
C1: مصر للطيران للخدمات الجويه
C2: قطاع الخدمات | H2: الاستعلام عن صنف بأدخال رقم صنف
C3: الادراه العامه للمشتريات
F6: رقم الصنف | H6: : | I6: 320105009
H7: :
F8: اسم الصنف | H8: : | I8: =IF(I6<>"",VLOOKAnyCol(azzam,I6,2,3),"") -> ل/لايت 970 ملل
F10: وحده الصنف | H10: : | I10: =IF(I6<>"",VLOOKAnyCol(azzam,I6,2,5),"") -> Bot
F12: سعر الصنف | H12: : | I12: =IF(I6<>"",VLOOKAnyCol(azzam,I6,2,6),"") -> 2.33 | M12: جم
F14: رقم المورد | H14: : | I14: =IF(I6<>"",VLOOKAnyCol(azzam,I6,2,7),"") -> 305
F16: المورد | H16: : | I16: =IF(I6<>"",VLOOKAnyCol(azzam,I6,2,8),"") -> بيبسى
F18: رقم امر التوريد | H18: : | I18: =IF(I6<>"",VLOOKAnyCol(azzam,I6,2,9),"") -> 221092
